bitfinex-derivatives/quotes_BNBF0:USTF0_20250115
["timestamp","ask_amount","ask_price","bid_price","bid_amount"]
[1736974345544,0.25860096,710.6,708.76,0.28218296]
[1736974345743,0.28142061,710.68,708.76,0.28218296]
[1736974345744,0.25860096,710.59,708.76,0.28218296]
[1736974345943,0.28142061,710.68,708.76,0.28218296]
[1736974346142,0.25860489,710.67,708.76,0.28218296]
[1736974346339,0.28142061,710.68,708.76,0.28218296]
[1736974346540,0.25860541,710.67,708.76,0.28218296]
[1736974350646,0.25860541,710.67,708.83,1.04854162]
[1736974351040,0.25860541,710.67,708.85,0.28214713]
[1736974351642,0.25860541,710.67,708.9,1.04854162]
[1736974352440,0.25860541,710.66,708.9,1.04854162]
[1736974352645,0.25860541,710.65,708.9,1.04854162]
[1736974352844,0.25860541,710.64,708.94,1.04854162]
[1736974353044,0.28142061,710.68,708.94,1.04854162]
[1736974353045,0.25860541,710.63,708.94,1.04854162]
[1736974353248,0.28142061,710.68,708.94,1.04854162]
[1736974353249,0.25860541,710.62,708.94,1.04854162]
[1736974353451,0.25860541,710.61,708.94,1.04854162]
[1736974353746,0.28142061,710.68,708.94,1.04854162]
[1736974353954,0.28142061,710.68,709.24,1.04854162]
[1736974355153,0.28142061,710.68,709.15,1.04854162]
[1736974355951,0.28142061,710.68,709.18,1.04854162]
[1736974356754,0.28142061,710.68,709.2,0.28200789]
[1736974359955,0.28142061,710.68,709.3,1.04854162]
[1736974360956,0.28142061,710.68,709.36,1.04854162]
[1736974361352,0.28142061,710.68,709.37,0.28194031]
[1736974363057,0.28142061,710.68,709.48,1.04854162]
[1736974364152,0.28142061,710.68,709.46,1.04854162]
[1736974364351,0.25856025,710.67,709.46,1.04854162]
[1736974365053,0.25856025,710.67,709.37,0.28194031]
[1736974365054,0.25856025,710.67,709.55,1.04854162]
[1736974365458,0.25858339,710.66,709.55,1.04854162]
[1736974365655,0.25858339,710.65,709.55,1.04854162]
[1736974365854,0.28142061,710.68,709.37,0.28194031]
[1736974365855,0.25858339,710.64,709.5,1.04854162]
[1736974366052,0.25858339,710.63,709.5,1.04854162]
[1736974366359,0.28142061,710.68,709.5,1.04854162]
[1736974366561,0.25858002,710.67,709.5,1.04854162]
[1736974366959,0.25858002,710.67,709.52,1.04854162]
[1736974368060,0.25858971,710.66,709.52,1.04854162]
[1736974368259,0.25858971,710.65,709.52,1.04854162]
[1736974368462,0.25858971,710.64,709.52,1.04854162]
[1736974368765,0.25858981,710.63,709.52,1.04854162]
[1736974368961,0.25858981,710.62,709.52,1.04854162]
[1736974369158,0.25858981,710.61,709.53,1.04854162]
[1736974369357,0.28142061,710.68,709.53,1.04854162]
[1736974369664,0.25859342,710.67,709.53,1.04854162]
[1736974370059,0.25859342,710.67,709.43,1.04854162]
[1736974370060,0.25859342,710.67,709.51,1.04854162]
[1736974370866,0.25859177,710.66,709.51,1.04854162]
[1736974371060,0.28142061,710.68,709.51,1.04854162]
[1736974371061,0.25859177,710.67,709.51,1.04854162]
[1736974371260,0.25859177,710.66,709.51,1.04854162]
[1736974371464,0.25859177,710.65,709.51,1.04854162]
[1736974371766,0.25859177,710.64,709.51,1.04854162]
[1736974371962,0.25859253,710.63,709.51,1.04854162]
[1736974372164,0.25859253,710.62,709.51,1.04854162]
[1736974372363,0.28142061,710.68,709.51,1.04854162]
[1736974372562,0.28142061,710.68,709.52,1.04854162]
[1736974373765,0.28142061,710.68,709.37,0.28194031]
[1736974382676,0.28142061,710.68,709.54,1.04854162]
[1736974383778,0.28142061,710.68,709.6,1.04854162]
[1736974385271,0.28142061,710.68,709.61,1.04854162]
[1736974386372,0.28142061,710.68,709.62,1.04854162]
[1736974387678,0.28142061,710.68,709.63,1.04854162]
[1736974389682,0.28142061,710.68,709.62,1.04854162]
[1736974390583,0.28142061,710.68,709.64,1.04854162]
[1736974391784,0.28142061,710.68,709.65,1.04854162]
[1736974392786,0.28142061,710.68,709.55,1.04854162]
[1736974393686,0.28142061,710.68,709.57,1.04854162]
[1736974394389,0.28142061,710.68,709.64,1.04854162]
[1736974395393,0.28142061,710.68,709.66,1.04854162]
[1736974396592,0.28142061,710.68,709.63,1.04854162]
[1736974396793,1.05148279,711.17,709.63,1.04854162]
[1736974396988,0.53973929,711.16,709.63,1.04854162]
[1736974397188,0.25850863,711.15,709.63,1.04854162]
[1736974397396,0.25850863,711.15,709.62,1.04854162]
[1736974397594,0.28123857,711.14,709.62,1.04854162]
[1736974397794,0.25850863,711.13,709.62,1.04854162]
[1736974398090,0.28124648,711.12,709.62,1.04854162]
[1736974398496,0.25849968,711.11,709.62,1.04854162]
[1736974399294,0.28124648,711.12,709.62,1.04854162]
[1736974399594,0.25848766,711.11,709.62,1.04854162]
[1736974399897,0.25848766,711.11,709.8,1.04854162]
[1736974400094,0.25848962,711.1,709.8,1.04854162]
[1736974400293,0.25848962,711.09,709.8,1.04854162]
[1736974400495,0.25848962,711.08,709.8,1.04854162]
[1736974400695,0.28124648,711.12,709.37,0.28194031]
[1736974400696,0.25848962,711.07,709.78,1.04854162]
[1736974400896,0.25848962,711.06,709.78,1.04854162]
[1736974401097,0.25848962,711.05,709.78,1.04854162]
[1736974401396,0.25848962,711.04,709.78,1.04854162]
[1736974401695,0.28124648,711.12,709.76,1.04854162]
[1736974401696,0.25848962,711.03,709.76,1.04854162]
[1736974401894,0.25848962,711.02,709.76,1.04854162]
[1736974402095,0.28124648,711.12,709.76,1.04854162]
[1736974402296,0.25849412,711.11,709.76,1.04854162]
[1736974402999,0.25849412,711.11,709.79,1.04854162]
[1736974403795,0.25849412,711.11,709.8,1.04854162]
[1736974405599,0.25849412,711.11,709.81,1.04854162]
[1736974406599,0.25849412,711.11,709.79,1.04854162]
[1736974407197,0.25849412,711.11,709.81,1.04854162]
[1736974408095,0.25849412,711.11,709.8,1.04854162]
[1736974409199,0.25849412,711.11,709.37,0.28194031]
[1736974409200,0.25849412,711.11,709.82,1.04854162]
[1736974410002,0.25849412,711.11,709.37,0.28194031]
[1736974410003,0.25849412,711.11,709.81,1.04854162]
[1736974410802,0.25849412,711.11,709.82,1.04854162]
[1736974412003,0.25849412,711.11,709.75,1.04854162]
[1736974412905,0.2584809,711.1,709.76,1.04854162]
[1736974413202,0.2584809,711.09,709.76,1.04854162]
[1736974413400,0.2584809,711.08,709.76,1.04854162]
[1736974413598,0.28124648,711.12,709.76,1.04854162]
[1736974414702,0.28124648,711.12,709.57,1.04854162]
[1736974414899,0.28124648,711.12,709.58,0.28185687]
[1736974420303,0.28124648,711.12,709.58,1.33055998]
[1736974428413,1.05144091,711.35,709.58,1.33055998]
[1736974430510,1.05144091,712.06,709.8,1.04870311]
[1736974430708,0.28088309,712.04,709.8,1.04870311]
[1736974430911,0.25826428,712.03,709.8,1.04870311]
[1736974431707,0.25826428,712.03,709.63,1.04870311]
[1736974431708,0.25826428,712.03,709.74,1.04870311]
[1736974431913,0.25826764,712.02,709.74,1.04870311]
[1736974432114,0.25826764,712.03,709.74,1.04870311]
[1736974432314,0.25826764,712.02,709.74,1.04870311]
[1736974432511,0.25826764,712.03,709.74,1.04870311]
[1736974432712,0.25826764,712.02,709.74,1.04870311]
[1736974432918,0.25826764,712.01,709.67,1.04870311]
[1736974433217,0.25826764,712.0,709.67,1.04870311]
[1736974433518,0.25826764,711.99,709.67,1.04870311]
[1736974433717,0.25826764,711.98,709.66,1.04870311]
[1736974433917,0.25826764,711.97,709.66,1.04870311]
[1736974434119,0.25826764,711.96,709.66,1.04870311]
[1736974434418,0.25826764,711.96,709.58,0.28185687]
[1736974434419,0.25826764,711.95,709.62,1.04870311]
[1736974434612,0.25826472,711.94,709.62,1.04870311]
[1736974434811,0.25826472,711.93,709.62,1.04870311]
[1736974435012,0.25826472,711.92,709.62,1.04870311]
[1736974435215,0.25826472,711.91,709.61,1.04870311]
[1736974435411,0.25826472,711.9,709.61,1.04870311]
[1736974435615,0.25826472,711.89,709.61,1.04870311]
[1736974435816,1.46871076,711.96,709.61,1.04870311]
[1736974436017,0.25826619,711.95,709.61,1.04870311]
[1736974436314,0.25826619,711.95,709.58,0.28185687]
[1736974437219,1.46871076,711.96,709.58,0.28185687]
[1736974437412,0.25827063,711.95,709.58,0.28185687]
[1736974439720,0.28092649,711.93,709.58,0.28185687]
[1736974440019,0.25826796,711.92,709.58,0.28185687]
[1736974440622,0.28092649,711.93,709.71,1.04870311]
[1736974440817,0.25827684,711.92,709.71,1.04870311]
[1736974441019,0.25827684,711.91,709.71,1.04870311]
[1736974441219,0.25827684,711.9,709.71,1.04870311]
[1736974441518,0.25827684,711.89,709.71,1.04870311]
[1736974441719,0.25827684,711.88,709.71,1.04870311]
[1736974442022,0.28092649,711.93,709.76,1.04870311]
[1736974442023,0.25829672,711.87,709.76,1.04870311]
[1736974442222,0.25829672,711.86,709.76,1.04870311]
[1736974442423,0.25829672,711.85,709.76,1.04870311]
[1736974442621,0.25829672,711.84,709.76,1.04870311]
[1736974442823,0.53926268,711.83,709.78,0.28177745]
[1736974443017,0.25829672,711.82,709.78,0.28177745]
[1736974443218,0.28097385,711.81,709.78,0.28177745]
[1736974443420,0.25829672,711.8,709.78,0.28177745]
[1736974444719,1.72718217,711.79,709.78,0.28177745]
[1736974444924,0.25829576,711.78,709.78,0.28177745]
[1736974446027,1.46888641,711.79,709.78,0.28177745]
[1736974446028,0.5392854,711.77,709.78,0.28177745]
[1736974446228,0.25829576,711.76,709.78,0.28177745]
[1736974446424,0.25829576,711.75,709.78,0.28177745]
[1736974446620,0.28098964,711.77,709.78,0.28177745]
[1736974446621,0.25829576,711.74,709.78,0.28177745]
[1736974446822,0.25829576,711.73,709.78,0.28177745]
[1736974447026,0.25829576,711.72,709.78,0.28177745]
[1736974447223,0.28098964,711.77,709.78,0.28177745]
[1736974447427,0.25833079,711.71,709.78,0.28177745]
[1736974447622,0.53934795,711.7,709.78,0.28177745]
[1736974447822,0.25833079,711.71,709.78,0.28177745]
[1736974447823,0.5393519,711.69,709.78,0.28177745]
[1736974448022,0.25832923,711.68,709.78,0.28177745]
[1736974448226,0.25832923,711.67,709.78,0.28177745]
[1736974448423,0.25832923,711.66,709.78,0.28177745]
[1736974448627,0.28102123,711.69,709.78,0.28177745]
[1736974448628,0.25832923,711.65,709.78,0.28177745]
[1736974448926,0.25832923,711.64,709.78,0.28177745]
[1736974449127,0.25832923,711.63,709.78,0.28177745]
[1736974449323,0.25832923,711.62,709.78,0.28177745]
[1736974449528,0.25832923,711.61,709.78,0.28177745]
[1736974449726,0.28105677,711.6,709.78,0.28177745]
[1736974449925,0.25832923,711.59,709.78,0.28177745]
[1736974450631,0.25832923,711.58,709.78,0.28177745]
[1736974450831,0.25832923,711.57,709.78,0.28177745]
[1736974451032,0.25832923,711.56,709.78,0.28177745]
[1736974451231,0.25832923,711.55,709.78,0.28177745]
[1736974451432,0.25832923,711.54,709.78,0.28177745]
[1736974451732,0.25832923,711.53,709.78,0.28177745]
[1736974452134,0.25832923,711.52,709.78,0.28177745]
[1736974452432,0.25832923,711.51,709.78,0.28177745]
[1736974452632,0.25832923,711.5,709.78,0.28177745]
[1736974452931,0.25832923,711.49,709.78,0.28177745]
[1736974453132,0.25832923,711.48,709.78,0.28177745]
[1736974453326,0.25832923,711.47,709.78,0.28177745]
[1736974453531,0.25832923,711.46,709.78,0.28177745]
[1736974453831,0.25832923,711.45,709.78,0.28177745]
[1736974454031,0.25832923,711.44,709.78,0.28177745]
[1736974454332,0.25832923,711.43,709.78,0.28177745]
[1736974454525,0.25832923,711.42,709.78,0.28177745]
[1736974454730,0.25832923,711.41,709.78,0.28177745]
[1736974455036,0.25832923,711.4,709.78,0.28177745]
[1736974455826,1.46954288,711.41,709.78,0.28177745]
[1736974456033,0.2584409,711.4,709.78,0.28177745]
[1736974458734,0.25844391,711.39,709.78,0.28177745]
[1736974458929,1.46954288,711.41,709.78,0.28177745]
[1736974458930,0.25844391,711.38,709.78,0.28177745]
[1736974459237,0.53959155,711.37,709.78,0.28177745]
[1736974459535,0.28115159,711.36,709.78,0.28177745]
[1736974460032,0.25844233,711.35,709.78,0.28177745]
[1736974461432,0.25843822,711.34,709.78,0.28177745]
[1736974461635,0.25843822,711.33,709.78,0.28177745]
[1736974461831,0.25843822,711.32,709.78,0.28177745]
[1736974462030,0.25843822,711.31,709.78,0.28177745]
[1736974462337,0.25843822,711.3,709.78,0.28177745]
[1736974462636,0.28115159,711.36,709.78,0.28177745]
[1736974462832,0.25843853,711.35,709.78,0.28177745]
[1736974464038,0.2811595,711.34,709.78,0.28177745]
[1736974464241,0.51688085,711.33,709.78,0.28177745]
[1736974464539,0.25844131,711.32,709.78,0.28177745]
[1736974464840,0.28117135,711.31,709.78,0.28177745]
[1736974465033,0.25844131,711.3,709.78,0.28177745]
[1736974467040,0.25843911,711.29,709.78,0.28177745]
[1736974467241,0.25843911,711.28,709.78,0.28177745]
[1736974467442,0.25843911,711.27,709.78,0.28177745]
[1736974467741,0.28117135,711.31,709.78,0.28177745]
[1736974467934,0.25843825,711.3,709.78,0.28177745]
[1736974469735,0.2584343,711.29,709.78,0.28177745]
[1736974469942,0.2584346,711.28,709.78,0.28177745]
[1736974471043,0.28118717,711.27,709.78,0.28177745]
[1736974471243,0.2584346,711.26,709.78,0.28177745]
[1736974472040,0.25845211,711.25,709.78,0.28177745]
[1736974472241,0.25845211,711.24,709.78,0.28177745]
[1736974472442,0.25845878,711.23,709.78,0.28177745]
[1736974472644,0.25845878,711.22,709.78,0.28177745]
[1736974472846,0.25845878,711.21,709.78,0.28177745]
[1736974473941,0.28121484,711.2,709.78,0.28177745]
[1736974474246,0.25845878,711.19,709.78,0.28177745]
[1736974475346,0.28121484,711.2,709.78,0.28177745]
[1736974475347,0.25845426,711.18,709.78,0.28177745]
[1736974475546,1.46973942,711.18,709.78,0.28177745]
[1736974475953,0.25846355,711.17,709.78,0.28177745]
[1736974477349,1.46973942,711.18,709.78,0.28177745]
[1736974477551,0.2584577,711.17,709.78,0.28177745]
[1736974477851,1.46973942,711.18,709.78,0.28177745]
[1736974478049,0.25846385,711.17,709.78,0.28177745]
[1736974480048,1.46973942,711.18,709.78,0.28177745]
[1736974480454,0.28121484,711.2,709.78,0.28177745]
[1736974480850,0.28121484,711.2,709.82,1.04732532]
[1736974481455,0.25840333,711.19,709.82,1.04732532]
[1736974481654,0.28121484,711.2,709.82,1.04732532]
[1736974481856,0.28121484,711.2,710.0,1.04732532]
[1736974482555,0.28121484,711.2,710.02,1.04732532]
[1736974483451,0.28121484,711.2,710.0,1.04732532]
[1736974484253,0.25842858,711.19,710.0,1.04732532]
[1736974484457,0.25842858,711.19,709.93,1.04732532]
[1736974485556,0.25842858,711.19,710.01,1.04732532]
[1736974488059,0.28121484,711.2,709.98,1.04732532]
[1736974488254,0.25843466,711.19,709.98,1.04732532]
[1736974488759,0.28121484,711.2,709.98,1.04732532]
[1736974488957,0.25843309,711.19,709.98,1.04732532]
[1736974489552,0.28121484,711.2,709.98,1.04732532]
[1736974489759,0.25843444,711.19,709.98,1.04732532]
[1736974490652,0.28122275,711.18,709.98,1.04732532]
[1736974490959,0.25843444,711.17,709.95,1.04732532]
[1736974491159,0.28123066,711.16,709.95,1.04732532]
[1736974491356,0.25843444,711.15,709.95,1.04732532]
[1736974491759,0.25849416,711.14,709.95,1.04732532]
[1736974491959,0.25849416,711.13,709.95,1.04732532]
[1736974492158,0.25849416,711.12,709.8,1.04732532]
[1736974492359,0.25849416,711.11,709.8,1.04732532]
[1736974492561,0.25849416,711.1,709.8,1.04732532]
[1736974492758,0.25849416,711.09,709.8,1.04732532]
[1736974492962,0.25849416,711.08,709.8,1.04732532]
[1736974493158,0.25849416,711.07,709.82,1.04732532]
[1736974493359,0.25849416,711.06,709.82,1.04732532]
[1736974493557,0.25849416,711.05,709.82,1.04732532]
[1736974493761,0.25849416,711.04,709.82,1.04732532]
[1736974493961,0.25849416,711.03,709.82,1.04732532]
[1736974494155,0.25849416,711.02,709.82,1.04732532]
[1736974494360,1.33051047,711.16,709.78,0.28177745]
[1736974494361,0.28123066,711.16,709.81,1.04732532]
[1736974494558,0.25848046,711.15,709.81,1.04732532]
[1736974494759,0.28123066,711.16,709.81,1.04732532]
[1736974495364,0.28123066,711.16,709.78,0.28177745]
[1736974500064,0.25850891,711.15,709.78,0.28177745]
[1736974500263,0.28123857,711.14,709.78,0.28177745]
[1736974500763,0.25849125,711.13,709.78,0.28177745]
[1736974501166,1.46988427,711.12,709.78,0.28177745]
[1736974504369,0.25851592,711.11,709.78,0.28177745]
[1736974505065,0.25852516,711.1,709.78,0.28177745]
[1736974505270,0.25852516,711.09,709.78,0.28177745]
[1736974505568,0.53978746,711.08,709.78,0.28177745]
[1736974505767,0.25852516,711.07,709.78,0.28177745]
[1736974506169,0.28127021,711.06,709.78,0.28177745]
[1736974506371,0.25852516,711.05,709.78,0.28177745]
[1736974506563,0.28127021,711.06,709.78,0.28177745]
[1736974506763,0.25857224,711.05,709.78,0.28177745]
[1736974507069,0.25858722,711.04,709.78,0.28177745]
[1736974507369,0.25858722,711.03,709.78,0.28177745]
[1736974507668,0.25858722,711.02,709.78,0.28177745]
[1736974507869,1.33055002,711.06,709.78,0.28177745]
[1736974507870,0.25858722,711.01,709.78,0.28177745]
[1736974508066,0.25858722,711.0,709.78,0.28177745]
[1736974508264,0.25858722,710.99,709.78,0.28177745]
[1736974508569,0.25858722,710.98,709.38,1.04732532]
[1736974508763,0.25858722,710.97,709.43,1.04732532]
[1736974508966,0.25858722,710.96,709.43,1.04732532]
[1736974509164,0.25858722,710.95,709.43,1.04732532]
[1736974509369,0.25858722,710.94,709.43,1.04732532]
[1736974509564,0.25858722,710.93,709.43,1.04732532]
[1736974509869,0.25859052,710.92,709.43,1.04732532]
[1736974510070,0.25859052,710.91,709.43,1.04732532]
[1736974510264,0.25859052,711.02,709.43,1.04732532]
[1736974510468,0.25859052,711.01,709.3,1.04732532]
[1736974510668,0.25859052,711.0,709.3,1.04732532]
[1736974510865,0.25859052,710.99,709.3,1.04732532]
[1736974511165,0.25859052,710.98,709.3,1.04732532]
[1736974511471,0.25859052,710.97,709.27,1.04732532]
[1736974511667,0.25859052,710.96,709.27,1.04732532]
[1736974512371,0.25863392,710.95,709.27,1.04732532]
[1736974512574,0.25863392,710.96,709.01,1.04732532]
[1736974512772,0.25863392,710.95,709.01,1.04732532]
[1736974512969,0.25863392,710.94,709.01,1.04732532]
[1736974513170,0.25863392,710.93,709.01,1.04732532]
[1736974513372,0.25863392,710.96,709.01,1.04732532]
[1736974513572,0.25863392,710.95,709.0,1.04732532]
[1736974513873,0.25863392,710.94,709.0,1.04732532]
[1736974514072,0.25863392,710.93,709.0,1.04732532]
[1736974514273,0.25863392,710.92,709.0,1.04732532]
[1736974514473,1.47045878,710.97,709.0,1.04732532]
[1736974514474,0.25863392,710.91,709.0,1.04732532]
[1736974514669,0.25863392,710.91,708.5,2.13828919]
[1736974514670,0.25863392,710.9,708.99,1.04732532]
[1736974514874,0.25863392,710.89,708.99,1.04732532]
[1736974515075,1.47045878,710.97,708.99,1.04732532]
[1736974515272,0.2586315,710.96,708.99,1.04732532]
[1736974515477,0.2586315,710.95,708.99,1.04732532]
[1736974515777,0.2586315,710.94,709.13,1.04732532]
[1736974515976,0.2586315,710.93,709.13,1.04732532]
[1736974516272,0.2586315,710.92,709.13,1.04732532]
[1736974516474,0.2586315,710.91,709.13,1.04732532]
[1736974516672,0.2586315,710.9,709.13,1.04732532]
[1736974516872,0.2586315,710.89,709.13,1.04732532]
[1736974517069,0.2586315,710.88,709.13,1.04732532]
[1736974517268,0.2586315,710.87,709.13,1.04732532]
[1736974517473,0.2586315,710.86,709.13,1.04732532]
[1736974517674,0.2586315,710.85,709.12,1.04732532]
[1736974517870,0.25863397,710.96,709.12,1.04732532]
[1736974518075,1.47045878,710.97,709.12,1.04732532]
[1736974518076,0.25863397,710.95,709.12,1.04732532]
[1736974518271,0.25863397,710.94,709.12,1.04732532]
[1736974518473,0.25863397,710.93,709.12,1.04732532]
[1736974518671,0.25863397,710.92,709.12,1.04732532]
[1736974518877,0.25863397,710.91,709.12,1.04732532]
[1736974519176,0.25863397,710.9,709.12,1.04732532]
[1736974519379,0.25863397,710.89,709.12,1.04732532]
[1736974519675,0.25863397,710.88,709.12,1.04732532]
[1736974519971,0.25863397,710.87,709.12,1.04732532]
[1736974520178,0.25863397,710.86,709.13,1.04732532]
[1736974520476,0.25863397,710.85,709.13,1.04732532]
[1736974520675,0.25863397,710.84,709.13,1.04732532]
[1736974520977,0.25863397,710.83,709.13,1.04732532]
[1736974521177,0.25860696,710.82,709.13,1.04732532]
[1736974521477,0.25860696,710.81,709.13,1.04732532]
[1736974521670,0.25860696,710.8,709.13,1.04732532]
[1736974521874,0.25860696,710.79,709.13,1.04732532]
[1736974522671,0.25860696,710.79,709.14,1.04732532]
[1736974523172,1.47045878,710.8,709.14,1.04732532]
[1736974523371,0.25858154,710.79,709.14,1.04732532]
[1736974523775,0.25858154,710.79,709.19,1.04732532]
[1736974524178,1.47045878,710.8,709.19,1.04732532]
[1736974524478,0.25857201,710.79,709.23,1.04732532]
[1736974524678,0.25857201,710.78,709.23,1.04732532]
[1736974524981,1.04927981,711.28,709.23,1.04732532]
[1736974525278,0.25856124,711.27,709.23,1.04732532]
[1736974525577,0.25856124,711.26,709.23,1.04732532]
[1736974525778,1.47020511,711.26,709.32,1.04732532]
[1736974525974,0.25857753,711.25,709.32,1.04732532]
[1736974526175,0.25857753,711.24,709.32,1.04732532]
[1736974526373,0.25857753,711.23,709.32,1.04732532]
[1736974526575,0.25857753,711.22,709.32,1.04732532]
[1736974526777,1.04927981,711.19,709.36,1.04732532]
[1736974526979,0.25857753,711.18,709.36,1.04732532]
[1736974527171,0.25857753,711.17,709.36,1.04732532]
[1736974527375,0.25857753,711.16,709.36,1.04732532]
[1736974527572,0.25857753,711.15,709.36,1.04732532]
[1736974527775,0.25857753,711.14,709.36,1.04732532]
[1736974527979,0.25857753,711.13,709.36,1.04732532]
[1736974528179,0.25857753,711.12,709.36,1.04732532]
[1736974528377,0.25857753,711.16,709.36,1.04732532]
[1736974528578,0.25859631,711.15,709.36,1.04732532]
[1736974528771,0.25859631,711.16,709.36,1.04732532]
[1736974528976,0.25859631,711.15,709.36,1.04732532]
[1736974529176,0.25859631,711.15,709.27,1.04732532]
[1736974529177,0.25859631,711.14,709.21,1.04732532]
[1736974529378,0.25859631,711.13,709.21,1.04732532]
[1736974529578,0.25859631,711.12,709.21,1.04732532]
[1736974529776,0.25859631,711.11,709.21,1.04732532]
[1736974529978,0.25859631,711.1,709.13,1.04732532]
[1736974530179,0.25859631,711.09,709.13,1.04732532]
[1736974530373,0.25859631,711.08,709.13,1.04732532]
[1736974530579,0.25859631,711.07,709.13,1.04732532]
[1736974530778,1.04927981,711.13,709.13,1.04732532]
[1736974530779,0.25859631,711.06,709.13,1.04732532]
[1736974530976,0.25859631,711.05,709.13,1.04732532]
[1736974531181,1.30787612,711.04,709.15,1.04732532]
[1736974531384,0.25863775,711.03,709.15,1.04732532]
[1736974531611,0.25863775,711.02,709.15,1.04732532]
[1736974531773,0.25863775,711.01,709.15,1.04732532]
[1736974531977,0.25863775,711.0,709.15,1.04732532]
[1736974532178,0.25863775,710.99,709.15,1.04732532]
[1736974532372,0.25863775,710.98,709.15,1.04732532]
[1736974532577,0.25863775,710.97,709.15,1.04732532]
[1736974532777,0.25863775,710.96,709.15,1.04732532]
[1736974532975,0.25863775,710.95,709.15,1.04732532]
[1736974533175,1.04927981,710.91,709.11,1.04732532]
[1736974533380,0.25863775,710.9,709.11,1.04732532]
[1736974533583,0.25863775,710.89,709.11,1.04732532]
[1736974533880,1.04927981,710.91,709.11,1.04732532]
[1736974534082,0.25866516,710.9,709.11,1.04732532]
[1736974534276,0.25866516,710.89,709.11,1.04732532]
[1736974534478,0.25866516,710.88,709.11,1.04732532]
[1736974534681,0.25866516,710.87,709.11,1.04732532]
[1736974534882,0.25866516,710.86,709.01,1.04732532]
[1736974535081,0.25866516,710.85,709.01,1.04732532]
[1736974535283,0.25866516,710.84,709.01,1.04732532]
[1736974535479,0.25866516,710.83,709.01,1.04732532]
[1736974535683,0.25866516,710.82,709.01,1.04732532]
[1736974535884,0.25866516,710.81,709.01,1.04732532]
[1736974536085,0.25866516,710.8,709.01,1.04732532]
[1736974536278,0.25866516,710.79,709.01,1.04732532]
[1736974536479,1.04927981,710.95,709.01,1.04732532]
[1736974536480,0.25866516,710.78,709.01,1.04732532]
[1736974536683,0.25866709,710.94,709.01,1.04732532]
[1736974536884,0.25866709,710.93,709.07,1.04732532]
[1736974537080,0.25866709,710.92,709.07,1.04732532]
[1736974537281,0.25866709,710.91,709.07,1.04732532]
[1736974537481,0.25866709,710.9,709.07,1.04732532]
[1736974537679,0.25866709,710.89,709.07,1.04732532]
[1736974537987,0.25866709,710.88,709.11,1.04732532]
[1736974538180,0.25866709,710.87,709.11,1.04732532]
[1736974538383,0.25866709,710.86,709.11,1.04732532]
[1736974538581,0.25866709,710.85,709.11,1.04732532]
[1736974538986,0.25866709,710.85,708.45,2.13828919]
[1736974538987,0.25866709,710.86,709.15,1.04732532]
[1736974539183,1.47068146,710.87,709.15,1.04732532]
[1736974539587,0.25868155,710.86,709.15,1.04732532]
[1736974539990,1.30797256,710.85,709.12,1.04732532]
[1736974540189,0.25869847,710.84,709.12,1.04732532]
[1736974540484,0.25869847,710.83,709.12,1.04732532]
[1736974540689,0.25869847,710.82,709.12,1.04732532]
[1736974540889,0.25869847,710.81,709.12,1.04732532]
[1736974541089,0.25869847,710.8,709.12,1.04732532]
[1736974541290,0.25869847,710.79,709.12,1.04732532]
[1736974541587,0.25868155,710.86,709.12,1.04732532]
[1736974541588,1.04927981,710.7,709.12,1.04732532]
[1736974541786,0.25869847,710.69,709.12,1.04732532]
[1736974541987,0.25869847,710.68,709.12,1.04732532]
[1736974542186,0.25869847,710.67,709.12,1.04732532]
[1736974542388,0.25869847,710.66,709.14,1.04732532]
[1736974542588,0.25869847,710.65,709.14,1.04732532]
[1736974542789,0.25871268,710.64,709.14,1.04732532]
[1736974542989,0.25871268,710.63,709.14,1.04732532]
[1736974543192,0.25871268,710.62,709.14,1.04732532]
[1736974543388,0.25871268,710.61,709.12,1.04732532]
[1736974543587,0.25871268,710.6,709.12,1.04732532]
[1736974543788,0.25871268,710.59,709.12,1.04732532]
[1736974544094,0.25871268,710.58,709.12,1.04732532]
[1736974544293,0.25871268,710.57,709.12,1.04732532]
[1736974544593,0.25871268,710.56,709.08,1.04732532]
[1736974544792,0.25871268,710.55,709.08,1.04732532]
[1736974544984,0.25871268,710.54,709.08,1.04732532]
[1736974545184,0.25871268,710.53,709.08,1.04732532]
[1736974545390,0.25871268,710.65,709.08,1.04732532]
[1736974545591,0.25871268,710.64,709.08,1.04732532]
[1736974545787,0.25871268,710.63,709.08,1.04732532]
[1736974545992,0.25871268,710.62,709.08,1.04732532]
[1736974546192,0.25871268,710.61,709.08,1.04732532]
[1736974546391,0.25871268,710.6,709.08,1.04732532]
[1736974546591,0.25871268,710.59,709.08,1.04732532]
[1736974546793,0.25871268,710.58,709.08,1.04732532]
[1736974546993,0.25871268,710.57,709.15,1.04732532]
[1736974547193,0.25871268,710.56,709.15,1.04732532]
[1736974547390,0.25871268,710.55,709.15,1.04732532]
[1736974547591,0.25871268,710.54,709.15,1.04732532]
[1736974547789,0.25871268,710.53,709.15,1.04732532]
[1736974547994,0.25871268,710.52,709.15,1.04732532]
[1736974548191,0.25871268,710.51,709.15,1.04732532]
[1736974548389,0.25871268,710.5,709.16,0.2820238]
[1736974548593,0.25871268,710.49,709.16,0.2820238]
[1736974548893,0.25871268,710.48,709.16,0.2820238]
[1736974549093,1.04927981,710.84,709.16,0.2820238]
[1736974549294,0.54003642,710.83,709.16,0.2820238]